Workbook

Sheet 売上集計
A1: 氏名 | B1: 宗﨑麻衣
G4: 条件検索
G5: 店舗 | H5: 年齢層 | I5: 売上金額
G6: 高知駅前店 | H6: 子ども | I6: =DSUM(B14:G54,G14,G5:H6) -> 1150
B7: 曜日・天気別売上金額集計表
C8: 月 | D8: 火 | E8: 水 | F8: 木 | G8: 金 | H8: 土 | I8: 日
B9: 晴 | C9: =SUMIFS($G$15:$G$54,$C$15:$C$54,C$8,$D$15:$D$54,$B9) -> 1120 | D9: =SUMIFS($G$15:$G$54,$C$15:$C$54,D$8,$D$15:$D$54,$B9) -> 1100 | E9: 200 | F9: 1740 | G9: 720 | H9: 4090 | I9: 2940
B10: 曇 | C10: =SUMIFS($G$15:$G$54,$C$15:$C$54,C$8,$D$15:$D$54,$B10) -> 500 | D10: 1020 | E10: 200 | F10: 0 | G10: 500 | H10: 0 | I10: 1100
B11: 雨・雪 | C11: 600 | D11: 400 | E11: 1990 | F11: 600 | G11: 0 | H11: 400 | I11: 930
B13: ３店舗おにぎり売上表（6/16～6/22）
B14: 日 | C14: 曜日 | D14: 天気 | E14: 店舗 | F14: 年齢層 | G14: 売上 | I14: 店舗
B15: 2024-06-16 | C15: =TEXT(B15,"aaa") -> 日 | D15: 晴 | E15: 高知駅前店 | F15: 高齢者 | G15: 400 | I15: 高知駅前店
B16: 2024-06-16 | C16: =TEXT(B16,"aaa") -> 日 | D16: 曇 | E16: 桟橋店 | F16: 子ども | G16: 900 | I16: 桟橋店
B17: 2024-06-16 | C17: 日 | D17: 雨・雪 | E17: 旭店 | F17: 若者 | G17: 180 | I17: 旭店
B18: 2024-06-16 | C18: 日 | D18: 晴 | E18: 桟橋店 | F18: 中高年 | G18: 200
B19: 2024-06-16 | C19: 日 | D19: 晴 | E19: 桟橋店 | F19: 子ども | G19: 500 | I19: 年齢層
B20: 2024-06-16 | C20: 日 | D20: 曇 | E20: 高知駅前店 | F20: 中高年 | G20: 200 | I20: 子ども
B21: 2024-06-16 | C21: 日 | D21: 晴 | E21: 桟橋店 | F21: 中高年 | G21: 800 | I21: 若者
B22: 2024-06-16 | C22: 日 | D22: 雨・雪 | E22: 高知駅前店 | F22: 子ども | G22: 750 | I22: 中高年
B23: 2024-06-16 | C23: 日 | D23: 晴 | E23: 高知駅前店 | F23: 高齢者 | G23: 840 | I23: 高齢者
B24: 2024-06-16 | C24: 日 | D24: 晴 | E24: 桟橋店 | F24: 高齢者 | G24: 200
B25: 2024-06-17 | C25: 月 | D25: 晴 | E25: 桟橋店 | F25: 中高年 | G25: 300
B26: 2024-06-17 | C26: 月 | D26: 晴 | E26: 旭店 | F26: 子ども | G26: 400
B27: 2024-06-17 | C27: 月 | D27: 雨・雪 | E27: 桟橋店 | F27: 子ども | G27: 600
B28: 2024-06-17 | C28: 月 | D28: 晴 | E28: 高知駅前店 | F28: 若者 | G28: 420
B29: 2024-06-17 | C29: 月 | D29: 曇 | E29: 旭店 | F29: 子ども | G29: 500
B30: 2024-06-18 | C30: 火 | D30: 晴 | E30: 桟橋店 | F30: 若者 | G30: 300
B31: 2024-06-18 | C31: 火 | D31: 晴 | E31: 高知駅前店 | F31: 中高年 | G31: 200
B32: 2024-06-18 | C32: 火 | D32: 雨・雪 | E32: 高知駅前店 | F32: 高齢者 | G32: 400
B33: 2024-06-18 | C33: 火 | D33: 晴 | E33: 桟橋店 | F33: 高齢者 | G33: 600
B34: 2024-06-18 | C34: 火 | D34: 曇 | E34: 旭店 | F34: 中高年 | G34: 600
B35: 2024-06-18 | C35: 火 | D35: 曇 | E35: 旭店 | F35: 高齢者 | G35: 420
B36: 2024-06-19 | C36: 水 | D36: 雨・雪 | E36: 高知駅前店 | F36: 子ども | G36: 400
B37: 2024-06-19 | C37: 水 | D37: 雨・雪 | E37: 桟橋店 | F37: 若者 | G37: 840
B38: 2024-06-19 | C38: 水 | D38: 雨・雪 | E38: 旭店 | F38: 若者 | G38: 750
B39: 2024-06-19 | C39: 水 | D39: 曇 | E39: 高知駅前店 | F39: 高齢者 | G39: 200
B40: 2024-06-19 | C40: 水 | D40: 晴 | E40: 桟橋店 | F40: 子ども | G40: 200
B41: 2024-06-20 | C41: 木 | D41: 晴 | E41: 高知駅前店 | F41: 高齢者 | G41: 840
B42: 2024-06-20 | C42: 木 | D42: 晴 | E42: 桟橋店 | F42: 高齢者 | G42: 200
B43: 2024-06-20 | C43: 木 | D43: 晴 | E43: 桟橋店 | F43: 中高年 | G43: 300
B44: 2024-06-20 | C44: 木 | D44: 晴 | E44: 旭店 | F44: 子ども | G44: 400
B45: 2024-06-20 | C45: 木 | D45: 雨・雪 | E45: 桟橋店 | F45: 子ども | G45: 600
B46: 2024-06-21 | C46: 金 | D46: 晴 | E46: 高知駅前店 | F46: 若者 | G46: 420
B47: 2024-06-21 | C47: 金 | D47: 曇 | E47: 旭店 | F47: 子ども | G47: 500
B48: 2024-06-21 | C48: 金 | D48: 晴 | E48: 桟橋店 | F48: 若者 | G48: 300
B49: 2024-06-22 | C49: 土 | D49: 晴 | E49: 高知駅前店 | F49: 中高年 | G49: 200
B50: 2024-06-22 | C50: 土 | D50: 雨・雪 | E50: 高知駅前店 | F50: 高齢者 | G50: 400
B51: 2024-06-22 | C51: 土 | D51: 晴 | E51: 桟橋店 | F51: 高齢者 | G51: 840
B52: 2024-06-22 | C52: 土 | D52: 晴 | E52: 高知駅前店 | F52: 高齢者 | G52: 750
B53: 2024-06-22 | C53: 土 | D53: 晴 | E53: 高知駅前店 | F53: 若者 | G53: 800
B54: 2024-06-22 | C54: 土 | D54: 晴 | E54: 旭店 | F54: 中高年 | G54: 1500

Sheet 若者詳細
A1: No. | B1: 店舗 | C1: 性別 | D1: 年齢層 | E1: 購入アイテム | F1: 単価 (税抜) | G1: 個数 | H1: 購入金額 (税込) | I1: 支払方法
A2: 32 | B2: 高知駅前店 | C2: 女 | D2: 若者 | E2: こんぶ | F2: 200 | G2: 1 | H2: 216 | I2: キャッシュレス決済
A3: 39 | B3: 高知駅前店 | C3: 女 | D3: 若者 | E3: ツナマヨ | F3: 200 | G3: 4 | H3: 864 | I3: クレジット
A4: 14 | B4: 高知駅前店 | C4: 男 | D4: 若者 | E4: こんぶ | F4: 200 | G4: 1 | H4: 216 | I4: キャッシュレス決済

Sheet 分析
A1: 店舗 | B1: 高知駅前店
A3: 合計 / 個数 | C3: 購入アイテム
A4: 年齢層 | B4: 性別 | C4: こんぶ | D4: ツナマヨ | E4: 塩むすび | F4: 鮭 | G4: 梅 | H4: 総計
A5: 高齢者 | B5: 女 | D5: 2 | H5: 2
B6: 男 | C6: 4 | F6: 5 | G6: 3 | H6: 12
A7: 高齢者 集計 | C7: 4 | D7: 2 | F7: 5 | G7: 3 | H7: 14
A8: 子ども | B8: 女 | D8: 2 | H8: 2
B9: 男 | G9: 3 | H9: 3
A10: 子ども 集計 | D10: 2 | G10: 3 | H10: 5
A11: 若者 | B11: 女 | C11: 1 | D11: 4 | H11: 5
B12: 男 | C12: 1 | H12: 1
A13: 若者 集計 | C13: 2 | D13: 4 | H13: 6
A14: 中高年 | B14: 女 | D14: 1 | E14: 1 | H14: 2
B15: 男 | D15: 1 | H15: 1
A16: 中高年 集計 | D16: 2 | E16: 1 | H16: 3
A17: 総計 | C17: 6 | D17: 10 | E17: 1 | F17: 5 | G17: 6 | H17: 28

Sheet 購入者詳細
B2: おにぎり購入者詳細データ
B3: 調査日程：6月16日～6月22日
B5: No. | C5: 店舗 | D5: 性別 | E5: 年齢層 | F5: 購入アイテム | G5: 単価 (税抜) | H5: 個数 | I5: 購入金額 (税込) | J5: 支払方法
B6: 1 | C6: 高知駅前店 | D6: 女 | E6: 高齢者 | F6: ツナマヨ | G6: =VLOOKUP(F6,$L$7:$M$13,2,0) -> 200 | H6: 2 | I6: =ROUNDDOWN(G6*H6*1.08,0) -> 432 | J6: 現金 | L6: おにぎり具材 | M6: 単価(税抜)
B7: 2 | C7: 桟橋店 | D7: 男 | E7: 子ども | F7: 塩むすび | G7: =VLOOKUP(F7,$L$7:$M$13,2,0) -> 150 | H7: 3 | I7: =ROUNDDOWN(G7*H7*1.08,0) -> 486 | J7: 現金 | L7: ツナマヨ | M7: 200
B8: 21 | C8: 旭店 | D8: 男 | E8: 高齢者 | F8: こんぶ | G8: =VLOOKUP(F8,$L$7:$M$13,2,0) -> 200 | H8: 1 | I8: =ROUNDDOWN(G8*H8*1.08,0) -> 216 | J8: 現金 | L8: 明太子・たらこ | M8: 420
B9: 4 | C9: 桟橋店 | D9: 女 | E9: 中高年 | F9: ツナマヨ | G9: =VLOOKUP(F9,$L$7:$M$13,2,0) -> 200 | H9: 1 | I9: =ROUNDDOWN(G9*H9*1.08,0) -> 216 | J9: クレジット | L9: こんぶ | M9: 200
B10: 5 | C10: 桟橋店 | D10: 男 | E10: 子ども | F10: 塩むすび | G10: =VLOOKUP(F10,$L$7:$M$13,2,0) -> 150 | H10: 2 | I10: =ROUNDDOWN(G10*H10*1.08,0) -> 324 | J10: 現金 | L10: おかか | M10: 180
B11: 6 | C11: 高知駅前店 | D11: 女 | E11: 中高年 | F11: 塩むすび | G11: =VLOOKUP(F11,$L$7:$M$13,2,0) -> 150 | H11: 1 | I11: =ROUNDDOWN(G11*H11*1.08,0) -> 162 | J11: 現金 | L11: 鮭 | M11: 250
B12: 7 | C12: 桟橋店 | D12: 男 | E12: 中高年 | F12: 鮭 | G12: =VLOOKUP(F12,$L$7:$M$13,2,0) -> 250 | H12: 4 | I12: =ROUNDDOWN(G12*H12*1.08,0) -> 1080 | J12: キャッシュレス決済 | L12: 梅 | M12: 180
B13: 8 | C13: 高知駅前店 | D13: 男 | E13: 子ども | F13: 梅 | G13: =VLOOKUP(F13,$L$7:$M$13,2,0) -> 180 | H13: 3 | I13: =ROUNDDOWN(G13*H13*1.08,0) -> 583 | J13: 現金 | L13: 塩むすび | M13: 150
B14: 9 | C14: 高知駅前店 | D14: 男 | E14: 高齢者 | F14: こんぶ | G14: =VLOOKUP(F14,$L$7:$M$13,2,0) -> 200 | H14: 2 | I14: =ROUNDDOWN(G14*H14*1.08,0) -> 432 | J14: キャッシュレス決済
B15: 10 | C15: 桟橋店 | D15: 女 | E15: 高齢者 | F15: 鮭 | G15: =VLOOKUP(F15,$L$7:$M$13,2,0) -> 250 | H15: 1 | I15: =ROUNDDOWN(G15*H15*1.08,0) -> 270 | J15: クレジット | L15: 支払方法
B16: 11 | C16: 桟橋店 | D16: 女 | E16: 中高年 | F16: 明太子・たらこ | G16: =VLOOKUP(F16,$L$7:$M$13,2,0) -> 420 | H16: 1 | I16: =ROUNDDOWN(G16*H16*1.08,0) -> 453 | J16: キャッシュレス決済 | L16: クレジット
B17: 12 | C17: 旭店 | D17: 女 | E17: 子ども | F17: ツナマヨ | G17: =VLOOKUP(F17,$L$7:$M$13,2,0) -> 200 | H17: 2 | I17: =ROUNDDOWN(G17*H17*1.08,0) -> 432 | J17: 現金 | L17: 現金
B18: 13 | C18: 桟橋店 | D18: 男 | E18: 子ども | F18: ツナマヨ | G18: =VLOOKUP(F18,$L$7:$M$13,2,0) -> 200 | H18: 3 | I18: =ROUNDDOWN(G18*H18*1.08,0) -> 648 | J18: 現金 | L18: キャッシュレス決済
B19: 14 | C19: 高知駅前店 | D19: 男 | E19: 若者 | F19: こんぶ | G19: =VLOOKUP(F19,$L$7:$M$13,2,0) -> 200 | H19: 1 | I19: =ROUNDDOWN(G19*H19*1.08,0) -> 216 | J19: キャッシュレス決済
B20: 30 | C20: 旭店 | D20: 男 | E20: 子ども | F20: ツナマヨ | G20: =VLOOKUP(F20,$L$7:$M$13,2,0) -> 200 | H20: 2 | I20: =ROUNDDOWN(G20*H20*1.08,0) -> 432 | J20: 現金
B21: 16 | C21: 桟橋店 | D21: 男 | E21: 若者 | F21: 明太子・たらこ | G21: =VLOOKUP(F21,$L$7:$M$13,2,0) -> 420 | H21: 1 | I21: =ROUNDDOWN(G21*H21*1.08,0) -> 453 | J21: キャッシュレス決済
B22: 17 | C22: 高知駅前店 | D22: 女 | E22: 中高年 | F22: ツナマヨ | G22: =VLOOKUP(F22,$L$7:$M$13,2,0) -> 200 | H22: 1 | I22: =ROUNDDOWN(G22*H22*1.08,0) -> 216 | J22: クレジット
B23: 18 | C23: 高知駅前店 | D23: 男 | E23: 高齢者 | F23: 鮭 | G23: =VLOOKUP(F23,$L$7:$M$13,2,0) -> 250 | H23: 2 | I23: =ROUNDDOWN(G23*H23*1.08,0) -> 540 | J23: 現金
B24: 19 | C24: 桟橋店 | D24: 女 | E24: 高齢者 | F24: 明太子・たらこ | G24: =VLOOKUP(F24,$L$7:$M$13,2,0) -> 420 | H24: 2 | I24: =ROUNDDOWN(G24*H24*1.08,0) -> 907 | J24: 現金
B25: 15 | C25: 旭店 | D25: 男 | E25: 子ども | F25: 梅 | G25: =VLOOKUP(F25,$L$7:$M$13,2,0) -> 180 | H25: 2 | I25: =ROUNDDOWN(G25*H25*1.08,0) -> 388 | J25: キャッシュレス決済
B26: 33 | C26: 旭店 | D26: 女 | E26: 子ども | F26: 梅 | G26: =VLOOKUP(F26,$L$7:$M$13,2,0) -> 180 | H26: 2 | I26: =ROUNDDOWN(G26*H26*1.08,0) -> 388 | J26: キャッシュレス決済
B27: 22 | C27: 高知駅前店 | D27: 女 | E27: 子ども | F27: ツナマヨ | G27: =VLOOKUP(F27,$L$7:$M$13,2,0) -> 200 | H27: 2 | I27: =ROUNDDOWN(G27*H27*1.08,0) -> 432 | J27: 現金
B28: 23 | C28: 桟橋店 | D28: 男 | E28: 若者 | F28: こんぶ | G28: =VLOOKUP(F28,$L$7:$M$13,2,0) -> 200 | H28: 2 | I28: =ROUNDDOWN(G28*H28*1.08,0) -> 432 | J28: キャッシュレス決済
B29: 20 | C29: 旭店 | D29: 男 | E29: 中高年 | F29: 塩むすび | G29: =VLOOKUP(F29,$L$7:$M$13,2,0) -> 150 | H29: 3 | I29: =ROUNDDOWN(G29*H29*1.08,0) -> 486 | J29: キャッシュレス決済
B30: 25 | C30: 高知駅前店 | D30: 男 | E30: 高齢者 | F30: 鮭 | G30: =VLOOKUP(F30,$L$7:$M$13,2,0) -> 250 | H30: 1 | I30: =ROUNDDOWN(G30*H30*1.08,0) -> 270 | J30: キャッシュレス決済
B31: 26 | C31: 桟橋店 | D31: 女 | E31: 子ども | F31: ツナマヨ | G31: =VLOOKUP(F31,$L$7:$M$13,2,0) -> 200 | H31: 1 | I31: =ROUNDDOWN(G31*H31*1.08,0) -> 216 | J31: 現金
B32: 27 | C32: 高知駅前店 | D32: 男 | E32: 高齢者 | F32: こんぶ | G32: =VLOOKUP(F32,$L$7:$M$13,2,0) -> 200 | H32: 2 | I32: =ROUNDDOWN(G32*H32*1.08,0) -> 432 | J32: キャッシュレス決済
B33: 28 | C33: 桟橋店 | D33: 男 | E33: 高齢者 | F33: 鮭 | G33: =VLOOKUP(F33,$L$7:$M$13,2,0) -> 250 | H33: 1 | I33: =ROUNDDOWN(G33*H33*1.08,0) -> 270 | J33: クレジット
B34: 29 | C34: 桟橋店 | D34: 女 | E34: 中高年 | F34: 塩むすび | G34: =VLOOKUP(F34,$L$7:$M$13,2,0) -> 150 | H34: 1 | I34: =ROUNDDOWN(G34*H34*1.08,0) -> 162 | J34: キャッシュレス決済
B35: 40 | C35: 旭店 | D35: 女 | E35: 中高年 | F35: 明太子・たらこ | G35: =VLOOKUP(F35,$L$7:$M$13,2,0) -> 420 | H35: 5 | I35: =ROUNDDOWN(G35*H35*1.08,0) -> 2268 | J35: キャッシュレス決済
B36: 31 | C36: 桟橋店 | D36: 男 | E36: 子ども | F36: ツナマヨ | G36: =VLOOKUP(F36,$L$7:$M$13,2,0) -> 200 | H36: 3 | I36: =ROUNDDOWN(G36*H36*1.08,0) -> 648 | J36: 現金
B37: 32 | C37: 高知駅前店 | D37: 女 | E37: 若者 | F37: こんぶ | G37: =VLOOKUP(F37,$L$7:$M$13,2,0) -> 200 | H37: 1 | I37: =ROUNDDOWN(G37*H37*1.08,0) -> 216 | J37: キャッシュレス決済
B38: 3 | C38: 旭店 | D38: 男 | E38: 若者 | F38: こんぶ | G38: =VLOOKUP(F38,$L$7:$M$13,2,0) -> 200 | H38: 1 | I38: =ROUNDDOWN(G38*H38*1.08,0) -> 216 | J38: クレジット
B39: 34 | C39: 桟橋店 | D39: 男 | E39: 若者 | F39: 明太子・たらこ | G39: =VLOOKUP(F39,$L$7:$M$13,2,0) -> 420 | H39: 1 | I39: =ROUNDDOWN(G39*H39*1.08,0) -> 453 | J39: キャッシュレス決済
B40: 35 | C40: 高知駅前店 | D40: 男 | E40: 中高年 | F40: ツナマヨ | G40: =VLOOKUP(F40,$L$7:$M$13,2,0) -> 200 | H40: 1 | I40: =ROUNDDOWN(G40*H40*1.08,0) -> 216 | J40: クレジット
B41: 36 | C41: 高知駅前店 | D41: 男 | E41: 高齢者 | F41: 鮭 | G41: =VLOOKUP(F41,$L$7:$M$13,2,0) -> 250 | H41: 2 | I41: =ROUNDDOWN(G41*H41*1.08,0) -> 540 | J41: 現金
B42: 37 | C42: 桟橋店 | D42: 女 | E42: 高齢者 | F42: こんぶ | G42: =VLOOKUP(F42,$L$7:$M$13,2,0) -> 200 | H42: 2 | I42: =ROUNDDOWN(G42*H42*1.08,0) -> 432 | J42: 現金
B43: 38 | C43: 高知駅前店 | D43: 男 | E43: 高齢者 | F43: 梅 | G43: =VLOOKUP(F43,$L$7:$M$13,2,0) -> 180 | H43: 3 | I43: =ROUNDDOWN(G43*H43*1.08,0) -> 583 | J43: 現金
B44: 39 | C44: 高知駅前店 | D44: 女 | E44: 若者 | F44: ツナマヨ | G44: =VLOOKUP(F44,$L$7:$M$13,2,0) -> 200 | H44: 4 | I44: =ROUNDDOWN(G44*H44*1.08,0) -> 864 | J44: クレジット
B45: 24 | C45: 旭店 | D45: 男 | E45: 若者 | F45: 梅 | G45: =VLOOKUP(F45,$L$7:$M$13,2,0) -> 180 | H45: 3 | I45: =ROUNDDOWN(G45*H45*1.08,0) -> 583 | J45: 現金

Sheet 人気具材
B2: コンビニおにぎりで最も好きな具は何ですか？
C3: 20代 | D3: 30代 | E3: 40代 | F3: 50代以上 | G3: 全体
B4: ツナマヨ | C4: 0.24 | D4: 0.32 | E4: 0.28 | F4: 0.2 | G4: 0.27
B5: 明太子・たらこ | C5: 0.24 | D5: 0.22 | E5: 0.28 | F5: 0.29 | G5: 0.26
B6: こんぶ | C6: 0.28 | D6: 0.2 | E6: 0.21 | F6: 0.24 | G6: 0.23
B7: おかか | C7: 0.08 | D7: 0.1 | E7: 0.07 | F7: 0.06 | G7: 0.08
B8: 鮭 | C8: 0.04 | D8: 0.04 | E8: 0.06 | F8: 0.08 | G8: 0.05
B9: 梅 | C9: 0.03 | D9: 0.01 | E9: 0.03 | F9: 0.04 | G9: 0.03
B10: 塩むすび | C10: 0.03 | D10: 0.04 | E10: 0.01 | F10: 0.02 | G10: 0.02
B11: その他 | C11: 0.06 | D11: 0.07 | E11: 0.06 | F11: 0.07 | G11: 0.06
B12: 合計 | C12: =SUM(C4:C11) -> 1 | D12: =SUM(D4:D11) -> 1 | E12: =SUM(E4:E11) -> 1 | F12: =SUM(F4:F11) -> 1 | G12: =SUM(G4:G11) -> 1

Sheet 目標
B2: 2023年度 おにぎり売上実績
C4: 高知駅前店 | D4: 桟橋店 | E4: 旭店 | F4: 合計
B5: 販売個数 | C5: 24354 | D5: 19562 | E5: 16753 | F5: =SUM(C5:E5) -> 60669
B6: 売上金額 | C6: 4870800 | D6: 4499260 | E6: 3518130 | F6: =SUM(C6:E6) -> 12888190
B9: 2024年度 おにぎり売上目標 | E9: 目標売上向上率 | F9: 0.1638562125
C11: 高知駅前店 | D11: 桟橋店 | E11: 旭店 | F11: 合計
B12: 販売個数 | C12: 25000 | D12: 20000 | E12: 17000 | F12: =SUM(C12:E12) -> 62000
B13: 売上金額 | C13: =C6+C6*$F$9 -> 5668910.84 | D13: =D6+D6*$F$9 -> 5236491.703 | E13: 4094597.457 | F13: =SUM(C13:E13) -> 15000000

Sheet 知識試験
B2: 【問題Ⅵ | C2: 下の問題に解答しなさい。解答は解答欄に入力しなさい。
B4: 1 | C4: 数式の中で、参照されているセルが「$F6」と表示されている場合、列は絶対参照、行は（ ）されている。（ ）に中に入る適切な語句は次の中のどれですか？
C6: ① | D6: 絶対参照 | F6: ② | G6: 複合参照 | I6: ③ | J6: 相対参照 | L6: ④ | M6: 相互参照 | P6: 解答 | Q6: ③
B9: 2 | C9: 数式「＝INT(-10.5)」の結果は次の中のどれになりますか？
C11: ① | D11: 10 | F11: ② | G11: -10 | I11: ③ | J11: 11 | L11: ④ | M11: -11 | P11: 解答 | Q11: ④
B13: 3 | C13: Ctrlキーを押しながら、（ ）キーを押すと、印刷プレビュー画面が表示される。
C15: ① | D15: C | F15: ② | G15: S | I15: ③ | J15: P | L15: ④ | M15: I | P15: 解答 | Q15: ③
B17: 4 | C17: ［並べ替え］ダイアログボックスにおいて、漢字混じりの文字列が入力されている列を並べ替えのキーに指定する場合、ふりがなを使用するかどうか選択して、並べ替えを行うことができる？できない？
C19: ① | D19: できる | F19: ② | G19: できない | P19: 解答 | Q19: ①
B21: 5 | C21: 列幅が狭く、計算結果を表示する桁数が足りない場合、セルには（ ）のように表示される。
C23: ① | D23: &&&&& | F23: ② | G23: ##### | I23: ③ | J23: ***** | L23: ④ | P23: 解答 | Q23: ②
B25: 6 | C25: 図形を描画するとき、（ ）キーを押しながらドラッグすると、セルの枠線に位置を合わせて描画することができる。
C27: ① | D27: Esc | F27: ② | G27: Ctrl | I27: ③ | J27: Shift | L27: ④ | M27: Alt | P27: 解答 | Q27: ④
B29: 7 | C29: 数値「2024」が入力されているセルを選択し、［ホーム］タブの［数値の値の書式］ボックスから［会計］をクリックすると、( )のように表示される。
C31: ① | D31: 2,024 | F31: ② | G31: ￥2,024 | I31: ③ | J31: \ 2,024 | L31: ④ | M31: ２千円 | P31: 解答 | Q31: ③
B33: 8 | C33: セルA1に文字列「数学期末テスト結果」が入力されているとき、数式「＝RIGHT（A1,4）」の結果は、( ）である。
C35: ① | D35: スト結果 | F35: ② | G35: 数学期末 | I35: ③ | J35: 数学期末テ | L35: ④ | M35: テスト結果 | P35: 解答 | Q35: ①
B37: 9 | C37: ( )キーを押すと、実行中のマクロを途中で中止することができる。
C39: ① | D39: Esc | F39: ② | G39: Ctrl | I39: ③ | J39: Shift | L39: ④ | M39: Alt | P39: 解答 | Q39: ①
B41: 10 | C41: セルA6に数式「＝SUM(A1：A5）が入力されているとき、（ ）と、数式が入力されているセルに「＃REF！」とエラー値が表示される。
C43: ① | D43: セルA1からA5に「０」を入力する | I43: ② | J43: セルA1からA5を空白にする | P43: 解答 | Q43: ③
C45: ③ | D45: 行1から行5を削除する。 | I45: ④ | J45: 列Aを削除する。
